Cogmind - Beta 16 @@@ ROGUE MODE // 2025.11.21 @ 16:12:57 Player: Lazz Result: Destroyed by L-41 Fighter with Axe Performance ------------- Evolutions (3) 1500 Regions Visited (6) 1200 Robots Destroyed (65) 325 Value Destroyed (2845) 2845 Prototype IDs (0) 0 Alien Tech Used (0) 0 Bonus (237) 237 TOTAL SCORE: 6107 Bonus ------- High Alert Combat Kills 37 Entered Garrisons 200 Cogmind --------- Core Integrity 0/700 Matter 137/300 Energy 100/100 System Corruption 1% Temperature Cool (12) Movement Core (1350) Ox26 Location -7/Garrison Parts ------- > --- POWER (1) -------- (None) > --- PROPULSION (3) --- (None) > --- UTILITY (6) ------ Huge Storage Unit Signal Interpreter Improved Targeting Computer > --- WEAPON (3) ------- (None) > --- INVENTORY (25) --- Light Nuclear Core Light Treads Light Treads Improved Heat Sink Huge Storage Unit Medium Matter Pod (29) Signal Interpreter Signal Interpreter Signal Interpreter Relay Coupler [NC] (31) Relay Coupler [Grunt] (33) Relay Coupler [Grunt] (22) Relay Coupler [Grunt] (33) Relay Coupler [Grunt] (22) Relay Coupler [Hunter] (19) Shock Bomb Launcher Peak State ------------ > --- POWER ------------ Light Nuclear Core > --- PROPULSION ------- Light Treads Light Treads Medium Treads > --- UTILITY ---------- Improved Heat Sink Huge Storage Unit Signal Interpreter Terrain Scan Processor Improved Targeting Computer Advanced Phase Shifter > --- WEAPON ----------- Gatling Laser Assault Rifle Coil Gun > --- INVENTORY -------- Light Nuclear Core Light Treads Light Treads Wheel Wheel Improved Heat Sink Huge Storage Unit Medium Matter Pod Signal Interpreter Signal Interpreter Signal Interpreter Relay Coupler [NC] Relay Coupler [Grunt] Relay Coupler [Grunt] Relay Coupler [Grunt] Relay Coupler [Grunt] Relay Coupler [Hunter] Autogun Shock Bomb Launcher Great Maul [Rating: 41] Favorites ----------- Power Ion Engine Engine Ion Engine Power Core Light Nuclear Core Propulsion Light Treads Treads Light Treads Wheel Wheel Utility Hardened Medium Armor Plating Device Improved Terrain Scanner Storage Huge Storage Unit Processor Terrain Scan Processor Protection Hardened Medium Armor Plating Weapon Heavy Assault Cannon Energy Gun Gatling Laser Energy Cannon Improved EM Pulse Cannon Ballistic Gun Autogun Ballistic Cannon Heavy Assault Cannon Launcher Rocket Launcher Impact Weapon Great Maul Build | -11 -10 -9 -9 -8 -7 -7 ------- Run | Yrd Mat Mat Min Mat Fac Gar Slots Evolved 6 | . . 2 . 2 2 . Power . | . . . . . . . Propulsion 1 | . . 1 . . . . Utility 4 | . . 1 . 2 1 . Weapon 1 | . . . . . 1 . Parts Attached 57 | 8 9 9 3 11 6 11 Power 6 | 1 . 1 . 2 . 2 Engine 4 | 1 . . . 2 . 1 Core 2 | . . 1 . . . 1 Reactor . | . . . . . . . Propulsion 16 | 2 5 3 . 4 1 1 Treads 10 | 2 . 3 . 4 1 . Leg . | . . . . . . . Wheel 6 | . 5 . . . . 1 Hover . | . . . . . . . Flight . | . . . . . . . Utility 19 | 2 3 2 1 4 3 4 Device 5 | 1 1 . 1 . . 2 Storage 4 | 1 2 1 . . . . Processor 3 | . . 1 . . 1 1 Hackware . | . . . . . . . Protection 7 | . . . . 4 2 1 Artifact . | . . . . . . . Weapon 16 | 3 1 3 2 1 2 4 Energy Gun 4 | 1 . . 1 . 1 1 Energy Cannon 1 | . . . . . . 1 Ballistic Gun 6 | 2 1 . 1 1 . 1 Ballistic Cannon 3 | . . 2 . . 1 . Launcher 1 | . . 1 . . . . Special Weapon . | . . . . . . . Impact Weapon 1 | . . . . . . 1 Slashing Weapon . | . . . . . . . Piercing Weapon . | . . . . . . . Special Melee Weapon . | . . . . . . . Unidentified Prototypes . | . . . . . . . Parts Lost 36 | . 2 4 1 6 . 23 Power 5 | . . 1 1 1 . 2 Propulsion 11 | . 1 3 . . . 7 Utility 9 | . . . . 3 . 6 Weapon 11 | . 1 . . 2 . 8 Highest Loss Streak 12 | . 1 3 1 3 . 12 To Critical Strikes . | . . . . . . . Average Backups 19 | 4 12 17 21 21 19 21 Power 1 | . 1 1 2 1 1 1 Propulsion 4 | 3 4 2 2 4 5 4 Utility 8 | . 5 9 10 9 6 9 Weapon 5 | . . 4 6 5 6 5 Tool/Special . | . . . . . . . Unused Backups 19 | . 2 . 2 1 . 14 Power 1 | . . . . . . 1 Propulsion 2 | . 2 . . . . . Utility 12 | . . . . . . 12 Weapon 4 | . . . 2 1 . 1 Tool/Special . | . . . . . . . Average Slot Usage (%) 91 | . 98 91 86 97 91 85 Engine 6 | . 14 3 . 7 7 5 Core 2 | . . 7 6 . . 1 Treads 21 | . 4 15 33 27 23 21 Wheel 5 | . 23 16 . . . . Device 7 | . 14 11 11 8 . 6 Storage 9 | . 14 11 11 9 7 7 Processor 10 | . . 10 11 9 10 18 Protection 10 | . . . . 18 26 8 Energy Gun 2 | . 9 . 2 . 2 3 Ballistic Gun 8 | . 18 7 2 17 1 2 Ballistic Cannon 4 | . . 7 8 . 6 5 Peak Build Rating 41 | 7 8 20 22 28 36 41 Average Rating 23 | 4 7 16 20 26 32 32 On Entrance 15 | . 7 8 20 17 19 36 Avg Prop Armor Cover (%) . | . . . . . . . Naked Turns . | . . . . . . . Heaviest Build 130 | 15 90 98 98 114 130 128 Greatest Support 68 | 40 40 60 60 60 68 68 Greatest Overweight (x) 28 | . 2 2 1 1 2 28 Average Overweight (x) 1 | . 1 . 1 1 1 1 Largest Inventory Capacity 25 | 8 25 25 25 25 25 25 Average Capacity 22 | 7 16 21 25 25 25 25 Most Carried 25 | 8 15 25 25 25 23 25 Average Carried 20 | 4 12 19 23 23 20 21 Final Capacity 25 | 8 15 25 25 25 25 25 Final Carried 25 | 8 14 25 24 24 22 16 Class Distribution -------------------- 44% | Scavenger-Mutant 21% | Tank 20% | Mutant 12% | Scavenger-Gunner Dominant Class ---------------- Mutant | -10/Materials Scavenger-Mutant | -9/Materials Scavenger-Mutant | -9/Mines Scavenger-Mutant | -8/Materials Tank | -7/Factory Scavenger-Gunner | -7/Garrison Resources | -11 -10 -9 -9 -8 -7 -7 ----------- Run | Yrd Mat Mat Min Mat Fac Gar Matter Collected 1941 | 295 120 411 116 271 270 458 Remotely . | . . . . . . . Salvage Created 1978 | 104 156 394 35 495 299 495 Parts 115 | 6 5 32 3 27 18 24 Haulers Intercepted 2 | . . 2 . . . . Recyclers Shooed 3 | . . 1 . 1 1 . Parts Field Recycled . | . . . . . . . Retrieved Matter . | . . . . . . . Parts Self-Destructed . | . . . . . . . Prevented . | . . . . . . . Parts Restored . | . . . . . . . Kills | -11 -10 -9 -9 -8 -7 -7 ------- Run | Yrd Mat Mat Min Mat Fac Gar Combat Hostiles Destroyed 55 | . 5 14 2 9 10 15 Guns 23 | . 5 3 . 9 2 4 Cannons 22 | . . 8 2 . 5 7 AOE 10 | . . 3 . . 3 4 Classes Destroyed 12 | 2 2 4 . 3 1 . Worker 3 | . . 2 . . 1 . Builder 1 | . . . . 1 . . Tunneler 2 | 1 . . 1 . . . Hauler 2 | . . 2 . . . . Recycler 1 | 1 . . . . . . Watcher 1 | . . 1 . . . . Swarmer 13 | . 3 3 . . 3 4 Grunt 25 | . 2 7 . 2 5 9 Brawler 1 | . . . . 1 . . Sentry 13 | . . 4 2 4 1 2 Hunter 2 | . . . . 2 . . Programmer 1 | . . . . . 1 . Best Kill Streak 5 | 1 3 5 2 3 3 4 Combat Bots Only 4 | . 3 4 2 2 3 4 Max Kills in Single Turn 3 | 1 1 3 1 2 2 2 Gunslinging . | . . . . . . . Exploded 3 | . . 3 . . 1 2 Melee . | . . . . . . . Uniques/NPCs Destroyed . | . . . . . . . Combat | -11 -10 -9 -9 -8 -7 -7 -------- Run | Yrd Mat Mat Min Mat Fac Gar Hostile Shots Fired 577 | . 47 62 23 122 63 260 Missed 150 | . 14 15 2 26 17 76 Hits 427 | . 33 47 21 96 46 184 Melee 11 | . . . . 1 . 10 Projectile 416 | . 33 47 21 95 46 174 Critical Strikes 10 | . . . . 3 2 5 Damage Taken 6241 | . 321 624 298 1405 719 2874 Core 1101 | . 91 67 55 174 59 655 Absorbed by Shields . | . . . . . . . Core Remaining (%) 75 | 100 63 . 69 68 . . Volleys Fired 190 | 5 24 54 13 44 15 35 Largest 3 | 2 2 2 1 2 2 3 Hottest 130 | 60 60 50 50 68 130 130 Shots Fired 308 | 10 48 67 13 84 27 59 Gun 212 | 10 48 26 . 84 12 32 Cannon 85 | . . 39 13 . 12 21 Launcher 11 | . . 2 . . 3 6 Special . | . . . . . . . Kinetic 241 | 5 37 65 13 78 13 30 Thermal 33 | . . . . . 11 22 Explosive 11 | . . 2 . . 3 6 Electromagnetic 23 | 5 11 . . 6 . 1 Robot Hit Streak 13 | 5 11 10 11 12 7 13 Robot Miss Streak 5 | 2 5 2 1 3 2 4 Penetration Max 1 | . . 1 . 1 . . Secondary Targets . | . . . . . . . Shots Hit Robots 224 | 8 29 53 12 63 22 37 Core Hits 114 | 3 10 22 3 20 21 35 Critical Kills . | . . . . . . . Critical Parts Destroyed . | . . . . . . . Critical Strikes 9 | . 1 5 . . 1 2 Blast 8 | . . 5 . . 1 2 Corrupt 1 | . 1 . . . . . Melee Attacks 5 | . . . . . . 5 Impact 5 | . . . . . . 5 Slashing . | . . . . . . . Piercing . | . . . . . . . Sneak Attacks . | . . . . . . . Combat Hostiles . | . . . . . . . Follow-up Attacks . | . . . . . . . Damage Inflicted 6630 | 105 356 2055 577 1035 1010 1492 Guns 2368 | 105 345 162 . 1035 213 508 Cannons 3264 | . . 1583 577 . 482 622 Explosions 971 | . . 310 . . 299 362 Melee . | . . . . . . . Ramming 27 | . 11 . . . 16 . Kinetic 4779 | 49 237 1745 577 967 495 709 Thermal 596 | . . . . . 200 396 Explosive 971 | . . 310 . . 299 362 Electromagnetic 257 | 56 108 . . 68 . 25 Impact . | . . . . . . . Slashing . | . . . . . . . Piercing . | . . . . . . . Highest Corruption 4 | . 4 . . . 1 1 Average Corruption 1 | . 3 . . . 1 1 Corruption Purged . | . . . . . . . Corruption Blocked . | . . . . . . . Effects 2 | . 1 . . . . 1 Message Errors 1 | . 1 . . . . . Energy Discharges 1 | . . . . . . 1 Overload Shots . | . . . . . . . Overflow Damage 64 | . . 33 8 . 12 11 Projectiles 30 | . . 18 8 . 4 . Explosions 34 | . . 15 . . 8 11 Melee . | . . . . . . . Knockbacks 12 | . . 7 . . 4 1 Impact . | . . . . . . . Kinetic 11 | . . 6 . . 4 1 Secondary 1 | . . 1 . . . . Self-Inflicted Damage 329 | . 5 . . . 73 251 Shots 7 | . . . . . 3 4 Rammed 5 | . 2 . . . 3 . Targets Rammed 6 | . 2 1 . . 3 . Kicked . | . . . . . . . Crushed 1 | . . 1 . . . . Highest Temperature 569 | . 63 57 38 213 425 569 Average Temperature 103 | . 34 14 13 58 153 221 Received Heat Transfer 1782 | . 81 252 108 513 261 567 Effects 6 | . . . . . 2 4 Energy Bleed 2 | . . . . . 1 1 Interference 2 | . . . . . 1 1 Matter Decay 1 | . . . . . . 1 Short Circuit 1 | . . . . . . 1 Siege Activations . | . . . . . . . Martial Activations . | . . . . . . . Shielding Activations . | . . . . . . . Robots Disrupted . | . . . . . . . Combat Hostiles . | . . . . . . . Robots Corrupted . | . . . . . . . Combat Hostiles . | . . . . . . . Parts Fried 1 | . . . . 1 . . Impact Corruptions . | . . . . . . . Robots Melted . | . . . . . . . Combat Hostiles . | . . . . . . . Parts Melted . | . . . . . . . Heat Transferred 1325 | . . . . . 450 875 Parts Sabotaged . | . . . . . . . Parts Stolen . | . . . . . . . Parts Stripped . | . . . . . . . Power Chain Reactions . | . . . . . . . Alert | -11 -10 -9 -9 -8 -7 -7 ------- Run | Yrd Mat Mat Min Mat Fac Gar Maximum Alert Level 2 | . . 1 . . . 2 Low Security (%) 88 | 100 100 93 100 100 100 43 Level 1 7 | . . 6 . . . 32 Level 2 4 | . . . . . . 23 Level 3 . | . . . . . . . Level 4 . | . . . . . . . Level 5 . | . . . . . . . High Security . | . . . . . . . Max Security . | . . . . . . . Peak Influence 513 | 5 91 215 81 76 137 513 Initial 79 | . . 21 70 . 2 79 Average 84 | . 29 94 28 17 43 267 Influence Increases 1901 | 10 191 441 63 291 344 561 Destroy 0b10 Robot/C 1100 | . 100 280 40 180 200 300 Destroy 0b10 Robot/NC 50 | 10 . 25 5 5 5 . Destroy Leader 246 | . 20 86 . 70 50 20 Successful Hack 50 | . 10 10 . . 14 16 Disable Machine 60 | . . 15 15 15 15 . Anti-Garrison Action 150 | . . . . . . 150 Destroy Structure 125 | . 1 25 3 6 15 75 Lose Combat Pursuer 120 | . 60 . . 15 45 . Influence Decreases 1491 | 10 140 309 246 284 237 265 Entered New Map 183 | . . 30 113 . 5 35 Time Decay 958 | 10 120 239 133 224 232 . Lost Part 350 | . 20 40 . 60 . 230 Squads Dispatched 8 | . . 2 . . 6 . Investigation 3 | . . 1 . . 2 . Extermination 1 | . . . . . 1 . Reinforcement 2 | . . 1 . . 1 . Assault . | . . . . . . . Garrison 2 | . . . . . 2 . Intercept . | . . . . . . . Searches Triggered . | . . . . . . . Construction Impeded . | . . . . . . . Haulers Reinforced . | . . . . . . . Active Scanning Responses . | . . . . . . . Cargo Convoy Interrupts . | . . . . . . . Stealth | -11 -10 -9 -9 -8 -7 -7 --------- Run | Yrd Mat Mat Min Mat Fac Gar Distress Signals 4 | . 1 3 . . . . Communications Jammed . | . . . . . . . Distress Signals . | . . . . . . . Times Spotted 89 | . 8 23 2 17 18 21 Peak Tracking Total 6 | . 4 6 2 6 3 5 Tactical Retreats 5 | . 2 . . 1 2 . Traps | -11 -10 -9 -9 -8 -7 -7 ------- Run | Yrd Mat Mat Min Mat Fac Gar Traps Triggered 4 | . 2 . . . . 2 Indirectly . | . . . . . . . Trap Hack Attempts . | . . . . . . . Triggered . | . . . . . . . Disarmed . | . . . . . . . Reprogrammed . | . . . . . . . Reused . | . . . . . . . Traps Extracted . | . . . . . . . Installed . | . . . . . . . Triggered . | . . . . . . . Machines | -11 -10 -9 -9 -8 -7 -7 ---------- Run | Yrd Mat Mat Min Mat Fac Gar Machines Disabled 8 | . . 1 1 1 1 4 Max in Single Turn 2 | . . 1 1 1 1 2 Garrison Relay 2 | . . . . . . 2 Phase Generator 1 | . . . . . . 1 Machines Repaired . | . . . . . . . Machines Dismantled . | . . . . . . . Machines Sabotaged . | . . . . . . . Overloaded Fab Kills . | . . . . . . . Hacking | -11 -10 -9 -9 -8 -7 -7 --------- Run | Yrd Mat Mat Min Mat Fac Gar Machines Accessed 11 | . 3 2 . 2 3 1 Terminals 9 | . 3 1 . 2 2 1 Fabricators . | . . . . . . . Repair Stations . | . . . . . . . Recycling Units . | . . . . . . . Scanalyzers 1 | . . 1 . . . . Garrison Access 1 | . . . . . 1 . Total Hacks 30 | . 5 11 . 4 8 2 Successful 15 | . 3 8 . 1 2 1 Failed 15 | . 2 3 . 3 6 1 Catastrophic 5 | . 2 1 . . 2 . Database Lockouts . | . . . . . . . Manual 4 | . 1 . . 3 . . Terminals 19 | . 5 4 . 4 4 2 Fabricators . | . . . . . . . Repair Stations . | . . . . . . . Recycling Units . | . . . . . . . Scanalyzers 7 | . . 7 . . . . Garrison Access 4 | . . . . . 4 . Terminal Hacks 8 | . 3 2 . 1 1 1 Robot Analysis 1 | . . 1 . . . . Open DSF 1 | . . . . . 1 . Alert Level 1 | . . . . 1 . . Maintenance Status 1 | . 1 . . . . . Security Status 1 | . 1 . . . . . Hauler Manifests 1 | . 1 . . . . . Zone Layout 1 | . . 1 . . . . Security Stations 1 | . . . . . . 1 Fabricator Hacks . | . . . . . . . Repair Station Hacks . | . . . . . . . Recycling Unit Hacks . | . . . . . . . Scanalyzer 6 | . . 6 . . . . Insert Component 1 | . . 1 . . . . Analyze 1 | . . 1 . . . . Retrieve Study 4 | . . 4 . . . . Garrison Access Hacks 1 | . . . . . 1 . Unlock Access 1 | . . . . . 1 . Unauthorized Hacks . | . . . . . . . Terminals . | . . . . . . . Fabricators . | . . . . . . . Repair Stations . | . . . . . . . Recycling Units . | . . . . . . . Scanalyzers . | . . . . . . . Garrison Access . | . . . . . . . Data Cores Recovered . | . . . . . . . Used . | . . . . . . . Hacking Detections 11 | . 3 2 . 2 3 1 Full Trace Events 4 | . . 2 . . 2 . Feedback Events . | . . . . . . . Feedback Blocked . | . . . . . . . Robot Schematics Acquired . | . . . . . . . Robots Built . | . . . . . . . Authchips . | . . . . . . . Time . | . . . . . . . Total Robot Build Rating . | . . . . . . . Part Schematics Acquired 1 | . . 1 . . . . Parts Built . | . . . . . . . Authchips . | . . . . . . . Time . | . . . . . . . Total Part Build Rating . | . . . . . . . Part Studies Acquired 4 | . . 4 . . . . Parts Repaired . | . . . . . . . Time . | . . . . . . . Parts Recycled . | . . . . . . . Recycled Matter . | . . . . . . . Retrieved Matter . | . . . . . . . Retrieved Components . | . . . . . . . Parts Scanalyzed 1 | . . 1 . . . . Part Schematics Acquired 1 | . . 1 . . . . Parts Damaged . | . . . . . . . Bothacking | -11 -10 -9 -9 -8 -7 -7 ------------ Run | Yrd Mat Mat Min Mat Fac Gar Used RIF Installer . | . . . . . . . Robots Hacked . | . . . . . . . Non-combat . | . . . . . . . Combat . | . . . . . . . Robot Hacks Applied . | . . . . . . . Relay Couplers Released 8 | . . . . . . 8 Machine Destruction 8 | . . . . . . 8 Fabnet Peak Effective % . | . . . . . . . Robots Rewired . | . . . . . . . Allies Hacked . | . . . . . . . Hacks Repelled . | . . . . . . . Allies | -11 -10 -9 -9 -8 -7 -7 -------- Run | Yrd Mat Mat Min Mat Fac Gar Total Allies . | . . . . . . . Largest Group . | . . . . . . . Highest-Rated Group . | . . . . . . . Highest-Rated Ally . | . . . . . . . Total Orders . | . . . . . . . Ally Attacks . | . . . . . . . Total Damage . | . . . . . . . Kills . | . . . . . . . Allies Corrupted . | . . . . . . . Allies Melted . | . . . . . . . Intel | -11 -10 -9 -9 -8 -7 -7 ------- Run | Yrd Mat Mat Min Mat Fac Gar Active Infowar (turns) 1882 | 14 252 601 357 658 . . Terrain 1674 | . 58 601 357 658 . . Seismic 208 | 14 194 . . . . . Robot Analysis Total 1 | . . 1 . . . . Derelict Logs Recovered . | . . . . . . . Drone Launches . | . . . . . . . Drone Recoveries . | . . . . . . . Exploration | -11 -10 -9 -9 -8 -7 -7 ------------- Run | Yrd Mat Mat Min Mat Fac Gar Turns Passed 3495 | 135 328 601 357 741 675 658 Spaces Moved 1331 | 69 167 250 156 232 238 219 Core 9 | 8 . . . . . 1 Treads 1024 | 61 23 105 156 232 238 209 Legs . | . . . . . . . Wheels 298 | . 144 145 . . . 9 Hover . | . . . . . . . Flight . | . . . . . . . Fastest Speed 50 | 50 100 76 200 200 229 130 Average Speed 189 | 147 120 135 200 211 250 222 Slowest Speed 1450 | 160 320 240 200 216 269 1450 Overloaded Moves . | . . . . . . . Propulsion Burnouts . | . . . . . . . Robots Hopped . | . . . . . . . Potential Cave-ins . | . . . . . . . Cave-ins Triggered . | . . . . . . . Exploration Rate (%) 24 | 4 28 29 42 25 10 35 Regions Visited 6 Branch Regions 1 Pre-discovered Areas . | . . . . . . . Known Exits Taken 1 | . . . . . 1 . Unknown Exits Taken 5 | 1 1 1 1 1 . . Scrap Searched 1 | . . . 1 . . . Spaces Dug 8 | . . 2 . . . 6 Terrain Destroyed 165 | . . 32 3 . 13 117 Melee 1 | . . . . . . 1 Projectile 28 | . . 13 3 . 3 9 AOE 136 | . . 19 . . 10 107 Terrain Rammed . | . . . . . . . Walls Destroyed . | . . . . . . . Machines Disabled . | . . . . . . . Actions | -11 -10 -9 -9 -8 -7 -7 --------- Run | Yrd Mat Mat Min Mat Fac Gar Total 1946 | 89 247 429 185 407 279 310 Wait 264 | . 31 95 3 118 8 9 Move 1325 | 68 166 249 155 231 237 219 Hop . | . . . . . . . Pick Up 51 | 8 9 13 4 1 4 12 Fast Attach 13 | 7 . 2 2 . . 2 Attach 38 | . 3 7 . 6 6 16 Detach 3 | . . 2 . . 1 . Swap 27 | 1 8 3 1 6 3 5 Drop 20 | . 4 3 7 1 2 3 Fire 190 | 5 24 54 13 44 15 35 Melee 5 | . . . . . . 5 Ram 2 | . 2 . . . . . Kick . | . . . . . . . Crush 4 | . . 1 . . 3 . Escape Stasis 4 | . . . . . . 4 Rewire . | . . . . . . . Trap . | . . . . . . . Miscellaneous . | . . . . . . . Route ------- -11/Scrapyard -10/Materials -9/Materials -9/Mines -8/Materials -7/Factory -7/Garrison History --------- Turn | Location | Event 2 | -11/Scrapyard | Met Revision 17 3 | -11/Scrapyard | Discovered new exit (range 15) 136 | -11/Scrapyard | Entered Materials 313 | -10/Materials | Build established: Mutant 459 | -10/Materials | Discovered new exit (range 4) 464 | -10/Materials | Entered another Materials area 464 | -9/Materials | Evolved 2 slots: Propulsion x1, Utility x1 805 | -9/Materials | Lost 3 parts (3n) 1053 | -9/Materials | Discovered new exit (range 6) 1065 | -9/Materials | Entered Mines 1237 | -9/Mines | Found a hidden stash of uninstalled traps 1305 | -9/Mines | Build established: Scavenger-Mutant 1393 | -9/Mines | Discovered new exit (range 11) 1422 | -9/Mines | Entered Materials 1422 | -8/Materials | Evolved 2 slots: Utility x2 2122 | -8/Materials | Discovered new exit (range 15) 2163 | -8/Materials | Entered Factory 2163 | -7/Factory | Evolved 2 slots: Utility x1, Weapon x1 2192 | -7/Factory | Lost 3 parts (1p1u1w) 2455 | -7/Factory | Build established: Tank 2829 | -7/Factory | Identified exit to Garrison 2838 | -7/Factory | Entered Garrison 2971 | -7/Garrison | Lost 4 parts (2u2w) 3030 | -7/Garrison | Triggered checkpoint 3165 | -7/Garrison | Lost 3 parts (2n1u) 3190 | -7/Garrison | Garrison Relay disabled 3218 | -7/Garrison | Garrison Relay disabled 3342 | -7/Garrison | Phase Generator disabled 3342 | -7/Garrison | Spotted B-75 Beast 3374 | -7/Garrison | Triggered checkpoint 3441 | -7/Garrison | Lost 3 parts (1u2w) 3472 | -7/Garrison | Learned Factory security intel 3478 | -7/Garrison | Core integrity fell below 50% 3494 | -7/Garrison | Core integrity fell below 20% 3496 | -7/Garrison | Destroyed by L-41 Fighter with Axe Last Messages --------------- 03460_ Lgt. Treads+ destroyed. 03460_ Adv. Phase Shifter destroyed. 03460_ Knocked back. 03463_ Assault Rifle destroyed. 03472_ Connecting with Garrison Terminal... >>Download(Security) Retrieving Factory security records... Downloaded coordinate data. Data stored: Factory security intel. 03473_ Slug penetrates L-41 Fighter. 03473_ Coil Gun destroyed. 03477_ Lgt. Nuclear Core destroyed. 03477_ Wheel+ destroyed. 03480_ Autogun destroyed. 03483_ Imp. Heat Sink destroyed. 03487_ Machine disabled. 03488_ Acquired 1 matter. 03490_ Great Maul severed. 03492_ Terrain Scan Processor severed. 03496_ Garrison Terminal disabled. Map ----- +----------------------------------------------------+ | ?????????????????????????????????????????????????? | | ?????????????????????????????????????????????????? | | ?????????????????????????????????????????????????? | | ??????????????????????????????????????##?????????? | | ??????????????????????????????????????# #????????? | | ???????????????????????????????????????# #???????? | | ????????????????????????????????????????# ###????? | | ????????????????????????????????????????#"""###### | | ?????????????????????????????????????????# * | | ????????????????????????????????????????## == | | ????????????????????????????????????????#" = = * | | ????????????????????????????????????????## ##"## | | ?????????????????????????????????????????# ####? | | ?????????????????????????????????????????# #???? | | ??????????????????????????????####???????# ##### | | ??????????????????????????????# ???????# ^ | | ??????????????????????????????# #???????# ^ | | ?????????????????????????????? ???????# ####" | | ??????????????????????????????# #???????# #???? | | ?????????????????????????????? #???????# #???? | | ??????????????????????????????# #???????# #???? | | ??????????????????????????????# #???????# #???? | | ????????????????????????????### #???????# #???? | | ?????????????????????????###BB# #???????# #???? | | ????????????????????????##l BBh #???????# #???? | | ????????????????????????#@l ;; #???????# #???? | | ????????????????????????####### ;#??????# #???? | | ??????????????????????????????# "#??????# #???? | | ??????????????????????????????# #???????# #??## | | ????????????????????########### ######### #??#= | | ????????????????????# #### | | ????????????????????# % | | ????????????????????# % | | ????????????????????# ####### ##### ########### | | ????????????????????# #??# # # ##???## | | ????????????????????# #??# # # ##??# | | ????????????????????# #??#### # # ### #??# | | ????????????????????# #?????# # # #??# | | ????????????????????# #?????# # # #??# | | ????????????????????# ####### #??# | | ?????????## ##""""## % #?# | | ???????? ^^ ####### ##?# | | ???????? ^^ #??#### # ##?# | | ???????? ^ #?## ## # ##?# | | ?????????# ## ## #?# # %# ## # #??# | | ??????????????# ## ### # # ### ##??## | | ?????????" [ ## # ##????? | | ?????????" # [##############?????? | | ?????????" * * #????????????????? | | ?????????" # # # #????????????????? | +----------------------------------------------------+ Best States ------------- Heat Dissipation 48 Energy Generation 14 Energy Capacity 265 Matter Stores 300 Matter Capacity 300 Sight Range 16 Terrain Scan Range 16 Terrain Scan Density 85 Armor Coverage 825 Phase Shifting 15 Evasion (%) 55 Targeting Accuracy 6 Recoil Reduction 3 Item Schematics ----------------- Huge Storage Unit | -9/Materials | Scanalyzed Robot Schematics ------------------ None Fabricated ------------ Nothing Repaired ---------- Nothing Studied --------- Com. Wheel | -9/Materials | Hacked Wheel | -9/Materials | Hacked Lgt. Assault Rifle | -9/Materials | Hacked Lgt. Treads | -9/Materials | Hacked Alien Tech Used ----------------- None Achievements -------------- None Challenges ------------ None Game ------ Seed BombGhostObliterator Manual? 0 Play Time 00:29:01 Cumulative 94.3 hours Start 2025.11.21 @ 15:45:53 End 2025.11.21 @ 16:12:57 Sessions 1 Manual Loads 0 Difficulty Rogue Special Mode None Game No. 133 Rogue 133 Adventurer 0 Explorer 0 Win Type - Total 1 Types 1/0/0/0/0/0/0/0/0/0 Lore% 57 Gallery% 52 Achievement% 39 Wizard Run 0 Options --------- Layout 2 ASCII 0 Keyboard 0 Movement Mouse Keybinds 0 Fullscreen 1 Font 24/Smallcaps Map View 50x44 Zoom Use 0% Tactical HUD 1 Map Filters NONE Filters NONE Steam 1 RUN: a8d269fe-b12e-4731-8cf8-2310a4df6a8f